fUSD/lending_fUSD_20240215
["ID","MTS","AMOUNT","RATE_DAILY","PERIOD"]
[314157455,1708030259964,-3328.19817423,0.00039383,120]
[314157456,1708030259974,-1465.72926669,0.00039383,2]
[314157457,1708030259983,-731.15424167,0.00039383,10]
[314157458,1708030259994,-990.01736007,0.00039383,120]
[314157459,1708030260003,-431.95490927,0.00039383,2]
[314157460,1708030260013,-5037.39504225,0.00039383,35]
[314157461,1708030260024,-20005.34263685,0.00039383,2]
[314157462,1708030260034,-172.06681807,0.00039383,30]
[314157463,1708030260044,-1909.79813998,0.00039383,2]
[314157464,1708030260053,-5561.09128733,0.00039383,2]
[314157465,1708030260063,-203.90995119,0.00039383,120]
[314157466,1708030260073,-463.33975083,0.00039383,2]
[314157467,1708030260083,-500.0,0.00039383,120]
[314157468,1708030260092,-1000.0,0.00039383,30]
[314157469,1708030260101,-27979.1521,0.00039383,7]
[314157470,1708030260111,-1000.0,0.00039383,30]
[314157471,1708030260120,-386.69622014,0.00039383,2]
[314157472,1708030260129,-1751.579423,0.00039383,30]
[314157473,1708030260138,-1368.887695,0.00039383,2]
[314157474,1708030260148,-159.93,0.000394,7]
[314157475,1708030260157,-3980.22,0.000394,7]
[314157476,1708030260166,-227.89977343,0.0003942,30]
[314157477,1708030260175,-155.34,0.00039422,2]
[314157478,1708030260184,-500.0,0.00039425,7]
[314157479,1708030260194,-567.021624,0.00039448,26]
[314157480,1708030260203,-151.0,0.00039452,7]
[314157481,1708030260212,-500.0,0.00039452,7]
[314157482,1708030260222,-623.77,0.00039452,7]
[314157483,1708030260231,-151.0,0.00039452,7]
[314157484,1708030260240,-500.0,0.00039452,7]
[314157485,1708030260250,-500.0,0.00039452,7]
[314157486,1708030260260,-151.0,0.00039452,2]
[314157487,1708030260269,-151.0,0.00039452,2]
[314157488,1708030260280,-151.0,0.00039452,7]
[314157489,1708030260290,-593.49,0.00039452,7]
[314157490,1708030260299,-1000.0,0.00039452,7]
[314157491,1708030260309,-500.0,0.00039452,7]
[314157492,1708030260319,-178.13540948,0.00039452,7]
[314157493,1708030260329,-500.0,0.00039452,7]
[314157494,1708030260339,-500.0,0.00039452,7]
[314157495,1708030260348,-500.0,0.00039452,7]
[314157496,1708030260358,-500.0,0.00039452,7]
[314157497,1708030260367,-500.0,0.00039452,7]
[314157498,1708030260376,-151.0,0.00039452,7]
[314157499,1708030260385,-500.0,0.00039452,7]
[314157500,1708030260394,-600.55,0.00039452,7]
[314157501,1708030260403,-500.0,0.00039452,7]
[314157502,1708030260414,-245.75431467,0.00039452,7]
[314157503,1708030260424,-500.0,0.00039452,7]
[314157504,1708030260434,-500.0,0.00039452,7]
[314157505,1708030260450,-770.94,0.00039452,7]
[314157506,1708030260460,-500.0,0.00039452,7]
[314157507,1708030260474,-500.0,0.00039452,7]
[314157508,1708030260484,-220.35,0.00039452,7]
[314157509,1708030260495,-500.0,0.00039452,7]
[314157510,1708030260504,-500.0,0.00039452,7]
[314157511,1708030260514,-929.82,0.00039452,7]
[314157512,1708030260526,-500.0,0.00039452,7]
[314157513,1708030260536,-166.48879793,0.00039452,7]
[314157514,1708030260546,-911.6,0.00039452,7]
[314157515,1708030260555,-500.0,0.00039452,7]
[314157516,1708030260564,-276.88,0.00039452,7]
[314157517,1708030260573,-685.25,0.00039452,7]
[314157518,1708030260583,-500.0,0.00039452,7]
[314157519,1708030260593,-614.56,0.00039452,7]
[314157520,1708030260602,-640.05,0.00039452,7]
[314157521,1708030260611,-500.0,0.00039452,7]
[314157522,1708030260621,-521.64,0.00039452,7]
[314157523,1708030260632,-792.35,0.00039452,7]
[314157524,1708030260641,-445.693169,0.00039452,7]
[314157525,1708030260650,-445.693169,0.00039452,7]
[314157526,1708030260660,-500.0,0.00039452,7]
[314157527,1708030260669,-500.0,0.00039452,7]
[314157528,1708030260678,-2332.53,0.00039452,7]
[314157529,1708030260688,-500.0,0.00039452,7]
[314157530,1708030260697,-500.0,0.00039452,7]
[314157531,1708030260707,-151.0,0.00039452,7]
[314157532,1708030260716,-500.0,0.00039452,7]
[314157533,1708030260725,-585.9,0.00039452,7]
[314157534,1708030260735,-500.0,0.00039452,7]
[314157535,1708030260745,-500.0,0.00039452,7]
[314157536,1708030260754,-500.0,0.00039452,7]
[314157537,1708030260764,-500.0,0.00039452,7]
[314157538,1708030260773,-151.0,0.00039452,7]
[314157539,1708030260786,-500.0,0.00039452,7]
[314157540,1708030260795,-500.0,0.00039452,7]
[314157541,1708030260806,-500.0,0.00039452,7]
[314157542,1708030260815,-151.0,0.00039452,7]
[314157543,1708030260825,-238.54,0.00039452,7]
[314157544,1708030260835,-500.0,0.00039452,7]
[314157545,1708030260844,-1291.83,0.00039452,7]
[314157546,1708030260853,-500.0,0.00039452,7]
[314157547,1708030260863,-666.17,0.00039452,7]
[314157548,1708030260872,-514.39,0.00039452,7]
[314157549,1708030260881,-781.55,0.00039452,7]
[314157550,1708030260891,-520.18,0.00039452,7]
[314157551,1708030260901,-161.089706,0.00039452,7]
[314157552,1708030260910,-500.0,0.00039452,7]
[314157553,1708030260919,-562.91,0.00039452,7]
[314157554,1708030260929,-500.0,0.00039452,7]
[314157555,1708030260939,-500.0,0.00039452,7]
[314157556,1708030260949,-622.52,0.00039452,7]
[314157557,1708030260958,-1470.33,0.00039452,7]
[314157558,1708030260968,-1026.64,0.00039452,7]
[314157559,1708030260978,-530.36,0.00039452,7]
[314157560,1708030260988,-526.37,0.00039452,7]
[314157561,1708030260997,-218.94258664,0.00039452,7]
[314157562,1708030261007,-500.0,0.00039452,7]
[314157563,1708030261017,-500.0,0.00039452,7]
[314157564,1708030261030,-629.84,0.00039452,7]
[314157565,1708030261040,-151.0,0.00039452,7]
[314157566,1708030261050,-1476.08,0.00039452,7]
[314157567,1708030261060,-8496.67,0.00039452,7]
[314157568,1708030261070,-500.0,0.00039452,7]
[314157569,1708030261080,-774.14,0.00039452,7]
[314157570,1708030261089,-725.35,0.00039452,7]
[314157571,1708030261098,-500.0,0.00039452,7]
[314157572,1708030261108,-1261.17,0.00039484,2]
[314157573,1708030261117,-151.0,0.00039485,7]
[314157574,1708030261127,-3257.89645657,0.000395,2]
[314157575,1708030261136,-937.46,0.000395,3]
[314157576,1708030261145,-937.46,0.000395,3]
[314157577,1708030261154,-937.46,0.000395,3]
[314157578,1708030261164,-937.46,0.000395,3]
[314157579,1708030261173,-937.46,0.000395,3]
[314157580,1708030261182,-937.46,0.000395,3]
[314157581,1708030261192,-937.46,0.000395,3]
[314157582,1708030261201,-937.46,0.000395,3]
[314157583,1708030261212,-937.46,0.000395,3]
[314157584,1708030261222,-937.46,0.000395,3]
[314157585,1708030261233,-937.46,0.000395,3]
[314157586,1708030261244,-937.46,0.000395,3]
[314157587,1708030261255,-937.46,0.000395,3]
[314157588,1708030261265,-937.46,0.000395,3]
[314157589,1708030261277,-937.46,0.000395,3]
[314157590,1708030261287,-937.46,0.000395,3]
[314157591,1708030261298,-937.46,0.000395,3]
[314157592,1708030261308,-937.46,0.000395,3]
[314157593,1708030261317,-937.46,0.000395,3]
[314157594,1708030261327,-937.46,0.000395,3]
[314157595,1708030261337,-153.99,0.000395,3]
[314157596,1708030261347,-153.99,0.000395,3]
[314157597,1708030261356,-221.4,0.000395,2]
[314157598,1708030261365,-166.76,0.00039516,2]
[314157599,1708030261375,-567.021624,0.00039548,24]
[314157600,1708030261384,-500.0,0.00039559,7]
[314157601,1708030261394,-3000.0,0.0003956,2]
[314157602,1708030261403,-3366.6,0.0003959,7]
[314157603,1708030261412,-3366.6,0.0003959,7]
[314157604,1708030261422,-346.0,0.000396,2]
[314157605,1708030261431,-2073.25,0.0003963,2]
[314157606,1708030261445,-240.84506107,0.0003964,2]
[314157607,1708030261454,-152.91,0.00039642,2]
[314157608,1708030261463,-567.021624,0.00039648,25]
[314157609,1708030261472,-1261.17,0.00039677,2]
[314157610,1708030261482,-500.0,0.00039693,7]
[314157611,1708030261492,-309.85,0.000397,7]
[314157612,1708030261501,-168.30211584,0.000397,4]
[314157613,1708030261510,-500.0,0.00039726,7]
[314157614,1708030261520,-151.0,0.00039726,7]
[314157615,1708030261531,-201.85663842,0.00039726,7]
[314157616,1708030261539,-500.0,0.00039726,7]
[314157617,1708030261549,-408.30509859,0.00039726,7]
[314157618,1708030261558,-500.0,0.00039726,7]
[314157619,1708030261567,-500.0,0.00039726,7]
[314157620,1708030261576,-500.0,0.00039726,7]
[314157621,1708030261585,-500.0,0.00039726,7]
[314157622,1708030261595,-500.0,0.00039726,7]
[314157623,1708030261604,-421.14,0.00039726,7]
[314157624,1708030261614,-500.0,0.00039726,7]
[314157625,1708030261624,-500.0,0.00039726,7]
[314157626,1708030261634,-770.94,0.00039726,7]
[314157627,1708030261643,-500.0,0.00039726,7]
[314157628,1708030261654,-500.0,0.00039726,7]
[314157629,1708030261665,-500.0,0.00039726,7]
[314157630,1708030261675,-929.82,0.00039726,7]
[314157631,1708030261686,-500.0,0.00039726,7]
[314157632,1708030261695,-911.6,0.00039726,7]
[314157633,1708030261705,-500.0,0.00039726,7]
[314157634,1708030261714,-685.25,0.00039726,7]
[314157635,1708030261724,-500.0,0.00039726,7]
[314157636,1708030261734,-614.56,0.00039726,7]
[314157637,1708030261743,-500.0,0.00039726,7]
[314157638,1708030261753,-521.64,0.00039726,7]
[314157639,1708030261763,-792.35,0.00039726,7]
[314157640,1708030261772,-500.0,0.00039726,7]
[314157641,1708030261782,-500.0,0.00039726,7]
[314157642,1708030261792,-2332.53,0.00039726,7]
[314157643,1708030261801,-500.0,0.00039726,7]
[314157644,1708030261811,-500.0,0.00039726,7]
[314157645,1708030261820,-585.9,0.00039726,7]
[314157646,1708030261829,-500.0,0.00039726,7]
[314157647,1708030261839,-500.0,0.00039726,7]
[314157648,1708030261849,-566.01,0.00039726,7]
[314157649,1708030261858,-500.0,0.00039726,7]
[314157650,1708030261867,-500.0,0.00039726,7]
[314157651,1708030261877,-500.0,0.00039726,7]
[314157652,1708030261886,-420.12,0.00039726,7]
[314157653,1708030261896,-500.0,0.00039726,7]
[314157654,1708030261905,-1291.83,0.00039726,7]
[314157655,1708030261915,-217.8762559,0.00039726,7]
[314157656,1708030261924,-666.17,0.00039726,7]
[314157657,1708030261934,-514.39,0.00039726,7]
[314157658,1708030261943,-781.55,0.00039726,7]
[314157659,1708030261952,-520.18,0.00039726,7]
[314157660,1708030261962,-500.0,0.00039726,7]
[314157661,1708030261971,-500.0,0.00039726,7]
[314157662,1708030261980,-562.91,0.00039726,7]
[314157663,1708030261989,-500.0,0.00039726,7]
[314157664,1708030261998,-622.52,0.00039726,7]
[314157665,1708030262007,-1470.33,0.00039726,7]
[314157666,1708030262016,-1026.64,0.00039726,7]
[314157667,1708030262025,-530.36,0.00039726,7]
[314157668,1708030262034,-526.37,0.00039726,7]
[314157669,1708030262045,-500.0,0.00039726,7]
[314157670,1708030262055,-251.05390167,0.00039726,7]
[314157671,1708030262065,-629.84,0.00039726,7]
[314157672,1708030262074,-1476.08,0.00039726,7]
[314157673,1708030262084,-8496.67,0.00039726,7]
[314157674,1708030262209,-500.0,0.00039726,7]
[314157675,1708030262219,-774.14,0.00039726,7]
[314157676,1708030262229,-725.35,0.00039726,7]
[314157677,1708030262238,-500.0,0.00039726,7]
[314157678,1708030262247,-893.55,0.00039726,2]
[314157679,1708030262257,-411.9,0.00039726,2]
[314157680,1708030262266,-411.9,0.00039726,2]
[314157681,1708030262275,-411.9,0.00039726,2]
[314157682,1708030262284,-422.84,0.00039726,2]
[314157683,1708030262293,-567.021624,0.00039748,26]
[314157684,1708030262302,-9506.36991943,0.00039786,13]
[314157685,1708030262311,-758.0,0.0003979,2]
[314157686,1708030262321,-708.0,0.0003979,2]
[314157687,1708030262331,-500.0,0.00039826,7]
[314157688,1708030262340,-152.98623785,0.00039838,6]
[314157689,1708030262350,-567.021624,0.00039848,27]
[314157690,1708030262359,-3366.6,0.00039863,7]
[314157691,1708030262368,-3366.6,0.00039863,7]
[314157692,1708030262378,-1261.17,0.00039869,2]
[314157693,1708030262387,-150.0,0.00039879,2]
[314157694,1708030262396,-150.0,0.00039879,2]
[314157695,1708030262405,-332947.18618707,0.0003988,2]
[314157696,1708030262425,-14541.12753831,0.0003988,2]
[314157697,1708030262438,-306.87043011,0.0003988,2]
[314157698,1708030262449,-396.74077807,0.0003988,2]
[314157699,1708030262463,-511.612035,0.0003988,2]
[314157700,1708030262474,-1071.82513,0.0003988,2]
[314157701,1708030263678,206.0,0.00029981,2]
[314157702,1708030270337,494730.49391513,0.00023,2]
[314157703,1708030270390,2279.29793356,0.00023,2]
[314157704,1708030270429,2279.29793356,0.00023,2]
[314157705,1708030270465,2279.29793356,0.00023,2]
[314157706,1708030270506,2279.29793356,0.00023,2]
[314157707,1708030270552,322279.29793356,0.00023,2]
[314157708,1708030270591,311296.83400313,0.00023,2]
[314157709,1708030270638,1455.0,0.00023,2]
[314157710,1708030270680,487337.99032951,0.00023,2]
[314157711,1708030281178,-5541.35904399,0.0002509,2]
[314157712,1708030293965,500.0,0.00025,5]
[314157713,1708030297559,150.0,0.000297,2]
[314157714,1708030312386,360.66189705,0.00027874,2]
[314157716,1708030341438,1005.72230827,0.000244,120]
[314157717,1708030349062,468.65760044,0.00027874,2]
[314157718,1708030367150,4773.99449166,0.0002509,2]
[314157719,1708030374876,3645.7282088,0.000263,2]
[314157720,1708030375217,289.95418562,0.00027874,2]
[314157721,1708030383699,205.0,0.00029981,2]
[314157722,1708030419072,16850.00099742,0.0002313,2]
[314157723,1708030421140,297.04448897,0.000301,2]
[314157724,1708030432971,465911.87677778,0.00023,2]
[314157725,1708030432993,35622.62980472,0.00023,2]
[314157726,1708030444647,4734.46636762,0.000275,2]
[314157728,1708030462401,302.0,0.00025,2]
[314157729,1708030463075,155.0,0.00018,2]
[314157730,1708030465168,177197.74648959,0.00028,2]
[314157731,1708031001349,1250.0,0.00025,3]
[314157732,1708031002570,1300.0,0.00027,3]
[314157733,1708031016935,3224.69144459,0.00028,7]
[314157734,1708031042924,3224.69144459,0.00028,7]
[314157735,1708031064945,3224.69144459,0.00028,7]
[314157736,1708031085042,3224.69144459,0.00028,7]
[314157737,1708031107122,3224.69144459,0.00028,7]
[314157738,1708031122944,1650.66514434,0.00028,7]
[314157739,1708031192480,200.0,0.00028,2]
[314157771,1708031431463,-214.68340081,0.00030991,4]
[314157772,1708031431473,-489.93341196,0.00030992,4]
[314157773,1708031431482,-123.2270046,0.00030994,4]
[314157774,1708031431494,-31.7729954,0.00030994,4]
[314157775,1708031431504,-805.1,0.00032327,2]
[314157776,1708031431515,-153.0740808,0.00032899,2]
[314157777,1708031431525,-2326.0,0.000329,3]
[314157778,1708031431536,-150.0,0.00032999,3]
[314157779,1708031431546,-150.0,0.00032999,3]
[314157780,1708031431556,-166.22634616,0.00033,2]
[314157781,1708031431566,-17602.0,0.00033,3]
[314157782,1708031431575,-177.39,0.00034245,120]
[314157783,1708031431586,-499.99,0.00034245,2]
[314157784,1708031431597,-414.3,0.00034245,2]
[314157785,1708031431607,-4593.3,0.00034245,2]
[314157786,1708031431619,-2000.0,0.00034245,2]
[314157787,1708031431629,-23900.0,0.00034459,2]
[314157788,1708031431638,-154.57,0.00034473,2]
[314157789,1708031431651,-2127.95,0.00034537,2]
[314157790,1708031431660,-250.0,0.00034561,2]
[314157791,1708031431669,-295.34,0.00034567,2]
[314157792,1708031431678,-600.0,0.00034574,2]
[314157793,1708031431688,-250.0,0.00034575,111]
[314157794,1708031431697,-805.1,0.00034591,2]
[314157795,1708031431706,-150.0,0.00034596,2]
[314157796,1708031431716,-250.0,0.00034602,2]
[314157797,1708031431725,-170.92,0.00034615,2]
[314157798,1708031431734,-1204.95,0.00034634,2]
[314157799,1708031431744,-298.0,0.00034636,3]
[314157800,1708031431754,-500.0,0.00034643,2]
[314157801,1708031431764,-3317.7798313,0.00034717,10]
[314157802,1708031431776,-2535.415952,0.00034717,10]
[314157803,1708031431785,-3537.08930342,0.00034726,10]
[314157804,1708031431794,-551.72290801,0.00034726,10]
[314157805,1708031431804,-2127.95,0.00034737,2]
[314157806,1708031431815,-716.08,0.00034818,2]
[314157807,1708031431824,-2127.95,0.00034937,2]
[314157808,1708031431834,-283.32,0.00035024,2]
[314157809,1708031431843,-700.1232475,0.00035046,4]
[314157810,1708031431856,-400.0,0.00035047,2]
[314157811,1708031431867,-227.2,0.00035074,2]
[314157812,1708031431876,-3598.2,0.00035085,5]
[314157813,1708031431886,-896.77164397,0.0003509,2]
[314157814,1708031431900,-18351.56135324,0.0003509,2]
[314157815,1708031431909,-2127.95,0.00035136,2]
[314157816,1708031431918,-227.2,0.0003517,2]
[314157817,1708031431929,-283.32,0.00035208,2]
[314157818,1708031431939,-470.1,0.00035223,2]
[314157819,1708031431948,-227.2,0.00035266,2]
[314157820,1708031431958,-2127.95,0.00035336,2]
[314157821,1708031431968,-227.2,0.00035363,2]
[314157822,1708031431978,-283.32,0.00035393,2]
[314157823,1708031431987,-3594.96,0.00035425,5]
[314157824,1708031431996,-227.2,0.00035459,2]
[314157825,1708031432006,-2127.95,0.00035535,2]
[314157826,1708031432015,-227.2,0.00035555,2]
[314157827,1708031432025,-283.32,0.00035577,2]
[314157828,1708031432034,-200.43839479,0.00035616,2]
[314157829,1708031432043,-1500.0,0.00035616,7]
[314157830,1708031432053,-227.2,0.00035651,2]
[314157831,1708031432063,-2127.95,0.00035735,2]
[314157832,1708031432073,-227.2,0.00035747,2]
[314157833,1708031432084,-283.32,0.00035761,2]
[314157834,1708031432093,-227.2,0.00035844,2]
[314157835,1708031432103,-152.84590275,0.0003591,5]
[314157836,1708031432113,-2127.95,0.00035934,2]
[314157837,1708031432122,-227.2,0.0003594,2]
[314157838,1708031432131,-283.32,0.00035946,2]
[314157839,1708031432140,-176.46745635,0.00035998,4]
[314157840,1708031432150,-5748.15553959,0.00036,10]
[314157841,1708031432159,-150.45,0.00036,2]
[314157842,1708031432168,-227.2,0.00036036,2]
[314157843,1708031432178,-283.32,0.0003613,2]
[314157844,1708031432187,-227.2,0.00036132,2]
[314157845,1708031432197,-2127.95,0.00036134,2]
[314157846,1708031432206,-396931.0,0.00036166,2]
[314157847,1708031432216,-155.0,0.000362,2]
[314157848,1708031432225,-227.2,0.00036228,2]
[314157849,1708031432235,-284.0,0.0003623,2]
[314157850,1708031432244,-234.021624,0.00036248,20]
[314157851,1708031432254,-1204.95,0.00036278,2]
[314157852,1708031432263,-234.021624,0.00036296,18]
[314157853,1708031432272,-210.0,0.00036299,3]
[314157854,1708031432282,-177.34,0.000363,2]
[314157855,1708031432291,-505.2273384,0.000363,2]
[314157856,1708031432303,-283.32,0.00036314,2]
[314157857,1708031432312,-227.2,0.00036325,2]
[314157858,1708031432324,-2127.95,0.00036334,2]
[314157859,1708031432333,-234.021624,0.00036348,19]
[314157860,1708031432342,-234.021624,0.00036396,18]
[314157861,1708031432351,-227.2,0.00036421,2]
[314157862,1708031432361,-189.77979254,0.00036438,2]
[314157863,1708031432371,-234.021624,0.00036448,20]
[314157864,1708031432380,-3412.32126324,0.00036448,2]
[314157865,1708031432390,-67853.71429623,0.00036448,2]
[314157866,1708031432399,-234.021624,0.00036496,18]
[314157867,1708031432409,-283.32,0.00036499,2]
[314157868,1708031432418,-227.2,0.00036517,2]
[314157869,1708031432428,-234.021624,0.00036548,19]
[314157870,1708031432439,-234.021624,0.00036596,18]
[314157871,1708031432449,-7173.14390489,0.000366,2]
[314157872,1708031432470,-227.2,0.00036613,2]
[314157873,1708031432482,-234.021624,0.00036648,24]
[314157874,1708031432491,-234.021624,0.00036648,20]
[314157875,1708031432501,-283.32,0.00036683,2]
[314157876,1708031432510,-234.021624,0.00036696,18]
[314157877,1708031432520,-150.0,0.000367,2]
[314157878,1708031432530,-150.0,0.000367,2]
[314157879,1708031432540,-227.2,0.00036709,2]
[314157880,1708031432551,-234.021624,0.00036748,19]
[314157881,1708031432560,-234.021624,0.00036796,18]
[314157882,1708031432570,-793.0667,0.000368,2]
[314157883,1708031432581,-230.4933,0.000368,2]
[314157884,1708031432592,-711.0492,0.000368,2]
[314157885,1708031432602,-2762.4701,0.000368,2]
[314157886,1708031432613,-5388.1416,0.000368,2]
[314157887,1708031432622,-1069.5124,0.000368,2]
[314157888,1708031432631,-3572.76067668,0.000368,8]
[314157889,1708031432641,-176.28392625,0.00036802,2]
[314157890,1708031432651,-152.98623785,0.00036802,2]
[314157891,1708031432660,-263.15507379,0.00036802,2]
[314157892,1708031432670,-538.21767708,0.00036802,2]
[314157893,1708031432679,-227.2,0.00036805,2]
[314157894,1708031432689,-278.15032054,0.00036828,9]
[314157895,1708031432699,-234.021624,0.00036848,24]
[314157896,1708031432709,-177.34,0.00036848,2]
[314157897,1708031432718,-805.1,0.00036855,2]
[314157898,1708031432729,-283.32,0.00036867,2]
[314157899,1708031432739,-234.021624,0.00036888,19]
[314157900,1708031432749,-234.021624,0.00036896,18]
[314157901,1708031432761,-170.32893908,0.00036897,2]
[314157902,1708031432772,-121505.22966178,0.000369,3]
[314157903,1708031432784,-150.0,0.000369,2]
[314157904,1708031432795,-1174746.7811,0.000369,2]
[314157905,1708031432805,-227.2,0.00036902,2]
[314157906,1708031432815,-234.021624,0.00036948,19]
[314157907,1708031432823,-470.1,0.00036984,2]
[314157908,1708031432833,-538.21767703,0.00036985,2]
[314157909,1708031432842,-150.0,0.00036986,2]
[314157910,1708031432851,-150.0,0.00036986,7]
[314157911,1708031432863,-63544.9218755,0.00037,7]
[314157912,1708031432882,-1960.05642908,0.00037,7]
[314157913,1708031432895,-615.09431998,0.00037,7]
[314157914,1708031432926,-756.82565859,0.00037,7]
[314157915,1708031432957,-11163.35150583,0.00037,7]
[314157916,1708031432970,-1502.28437207,0.00037,7]
[314157922,1708031433146,-5958.5,0.00037,7]
[314157924,1708031433158,-14498.96583895,0.00037,7]
[314157926,1708031433168,-361.0,0.00037,2]
[314157928,1708031433178,-243.56,0.00037014,2]
[314157930,1708031433187,-234.021624,0.00037048,24]
[314157932,1708031433197,-263.15507376,0.00037052,2]
[314157934,1708031433207,-283.32,0.00037052,2]
[314157936,1708031433218,-783.2047,0.000371,2]
[314157937,1708031433227,-11228.9619,0.000371,2]
[314157938,1708031433237,-5645.7581,0.000371,3]
[314157939,1708031433247,-5000.0,0.000371,3]
[314157940,1708031433256,-7904.85600857,0.000371,2]
[314157941,1708031433266,-234.021624,0.00037148,19]
[314157942,1708031433275,-538.21767703,0.00037168,2]
[314157943,1708031433284,-3317.7916,0.000372,2]
[314157944,1708031433294,-16972.4524,0.000372,2]
[314157945,1708031433303,-432.65202717,0.000372,2]
[314157946,1708031433313,-283.32,0.00037236,2]
[314157947,1708031433324,-150.0,0.00037248,2]
[314157948,1708031433334,-234.021624,0.00037248,24]
[314157949,1708031433343,-161.4292,0.000373,2]
[314157950,1708031433352,-100000.0,0.000373,2]
[314157951,1708031433362,-1517.275,0.000373,2]
[314157952,1708031433371,-500.0,0.000373,2]
[314157953,1708031433381,-3420.4971,0.000373,2]
[314157954,1708031433391,-7599.8705,0.000373,10]
[314157955,1708031433401,-4483.0054,0.000373,2]
[314157956,1708031433412,-84057.346,0.000373,2]
[314157957,1708031433422,-509.5626,0.000373,2]
[314157958,1708031433431,-39479.1179,0.000373,2]
[314157959,1708031433442,-52907.61605228,0.000373,2]
[314157960,1708031433458,-7121.68071875,0.000373,2]
[314157961,1708031433471,-45680.03034928,0.000373,2]
[314157967,1708031437466,-1003.74535095,0.000373,2]
[314157968,1708031437481,-1019.84683517,0.000373,2]
[314157969,1708031437522,-1095.5868,0.000373,2]
[314157970,1708031437535,-6923.06838743,0.000373,2]
[314157971,1708031437549,-543.68032293,0.000373,2]
[314157972,1708031437562,-3077.77406271,0.000373,2]
[314157973,1708031437579,-53228.00745031,0.000373,2]
[314157974,1708031437638,-2183.19584611,0.000373,2]
[314157975,1708031437649,-578.267575,0.000373,2]
[314157976,1708031437707,-652.69310717,0.000373,2]
[314157977,1708031437720,-3533.88886504,0.000373,2]
[314157978,1708031437732,-14187.44619049,0.000373,2]
[314157979,1708031437744,-3579.3,0.000373,2]
[314157980,1708031437830,-292.42963363,0.000373,2]
[314157982,1708031437843,-3518.91188734,0.000373,2]
[314157984,1708031437854,-43872.83056541,0.000373,2]
[314157987,1708031437866,-1000.0,0.000373,2]
[314157988,1708031437875,-263.15507376,0.00037301,2]
[314157990,1708031437885,-234.021624,0.00037348,25]
[314157991,1708031437895,-538.21767703,0.00037351,2]
[314157993,1708031437905,-67853.71429622,0.00037376,2]
[314157994,1708031437915,-353.38,0.00037396,2]
[314157996,1708031437925,-3638.64,0.00037398,5]
[314157997,1708031437936,-317597.10446905,0.000374,5]
[314157998,1708031437947,-3607.76,0.000374,5]
[314157999,1708031437958,-151.0,0.00037411,120]
[314158000,1708031437969,-283.32,0.0003742,2]
[314158001,1708031437979,-234.021624,0.00037448,24]
[314158002,1708031437988,-386.79964509,0.00037478,3]
[314158003,1708031437999,-3063.66804511,0.00037478,4]
[314158004,1708031438009,-304.10595101,0.00037478,3]
[314158005,1708031438018,-583.98675483,0.00037478,3]
[314158006,1708031438029,-2011.98479255,0.00037478,4]
[314158007,1708031438038,-640.31281827,0.00037486,3]
[314158008,1708031438048,-189.77979254,0.0003749,2]
[314158009,1708031438057,-544.34080787,0.00037491,4]
[314158010,1708031438069,-1000.0,0.000375,2]
[314158011,1708031438079,-2695.08125374,0.000375,2]